[Event "Late-Titled-Tuesday-Blitz-June-18-2024"]
[Site "Chess.com"]
[Date "2024.06.18"]
[Round "5"]
[White "betta2004"]
[Black "Dhaydon19"]
[Result "0-1"]
[WhiteElo "2470"]
[BlackElo "2650"]
[TimeControl "180+1"]
[EndTime "14:56:08 PDT"]
[Termination "Dhaydon19 won by resignation"]

1. Nf3 {[%clk 0:02:56.7]} 1... c5 {[%clk 0:03:00]} 2. e3 {[%clk 0:02:55.2]} 2...
Nf6 {[%clk 0:03:00]} 3. b3 {[%clk 0:02:55.3]} 3... Nc6 {[%clk 0:02:59.3]} 4. Bb2
{[%clk 0:02:55]} 4... e6 {[%clk 0:02:59.2]} 5. d4 {[%clk 0:02:55]} 5... d5
{[%clk 0:02:59]} 6. Nbd2 {[%clk 0:02:54.9]} 6... Be7 {[%clk 0:02:55.5]} 7. Bd3
{[%clk 0:02:54.6]} 7... O-O {[%clk 0:02:54.8]} 8. O-O {[%clk 0:02:53.3]} 8... b6
{[%clk 0:02:54.8]} 9. Ne5 {[%clk 0:02:53]} 9... Bb7 {[%clk 0:02:54.9]} 10. f4
{[%clk 0:02:52.5]} 10... Rc8 {[%clk 0:02:53.8]} 11. Qf3 {[%clk 0:02:51.3]} 11...
Nb4 {[%clk 0:02:50.4]} 12. Rfc1 {[%clk 0:02:25.6]} 12... c4 {[%clk 0:02:41.2]}
13. a3 {[%clk 0:02:08.5]} 13... cxd3 {[%clk 0:02:35.5]} 14. axb4 {[%clk
0:02:08.2]} 14... dxc2 {[%clk 0:02:31.5]} 15. Rxa7 {[%clk 0:01:50.3]} 15... Bxb4
{[%clk 0:02:04.1]} 16. Qe2 {[%clk 0:01:50]} 16... Rc7 {[%clk 0:01:54.3]} 17.
Ndf3 {[%clk 0:01:45.9]} 17... Qc8 {[%clk 0:01:51.1]} 18. Nd3 {[%clk 0:01:40.1]}
18... Ba6 {[%clk 0:01:42.9]} 19. Rxc7 {[%clk 0:01:39.5]} 19... Qxc7 {[%clk
0:01:42.7]} 20. Rxc2 {[%clk 0:01:40]} 20... Qb7 {[%clk 0:01:39.1]} 21. Nfe5
{[%clk 0:01:38.5]} 21... Bd6 {[%clk 0:01:38.5]} 22. Qd1 {[%clk 0:01:37.9]} 22...
Ne4 {[%clk 0:01:37.8]} 23. Qc1 {[%clk 0:01:33.7]} 23... f6 {[%clk 0:01:36.9]}
24. Nf2 {[%clk 0:01:19.4]} 24... Nxf2 {[%clk 0:01:32.6]} 25. Kxf2 {[%clk
0:01:20.3]} 25... fxe5 {[%clk 0:01:32.5]} 26. dxe5 {[%clk 0:01:20.3]} 26... Bc5
{[%clk 0:01:26.4]} 27. b4 {[%clk 0:01:20.5]} 27... Rxf4+ {[%clk 0:01:26]} 28.
Kg3 {[%clk 0:01:20.6]} 28... Rxb4 {[%clk 0:01:25.4]} 29. Bd4 {[%clk 0:01:19.3]}
29... Rc4 {[%clk 0:01:13.9]} 30. Rxc4 {[%clk 0:01:09.8]} 30... Bxc4 {[%clk
0:01:10.2]} 31. Qb2 {[%clk 0:01:05.2]} 31... Qc7 {[%clk 0:01:09.7]} 32. Qa1
{[%clk 0:01:02.8]} 32... h6 {[%clk 0:01:07.5]} 33. Qa8+ {[%clk 0:01:02.3]} 33...
Kh7 {[%clk 0:01:07.5]} 34. h4 {[%clk 0:01:01.1]} 34... Qf7 {[%clk 0:01:06.7]}
35. Qc8 {[%clk 0:00:58.2]} 35... Qg6+ {[%clk 0:01:05.4]} 36. Kh2 {[%clk
0:00:58.4]} 36... Bf1 {[%clk 0:01:04.6]} 37. g3 {[%clk 0:00:51.8]} 37... Qc2+
{[%clk 0:01:04.1]} 0-1

[Event "Late-Titled-Tuesday-Blitz-June-18-2024"]
[Site "Chess.com"]
[Date "2024.06.18"]
[Round "5"]
[White "jup1978"]
[Black "simaopdias"]
[Result "0-1"]
[WhiteElo "2445"]
[BlackElo "2212"]
[TimeControl "180+1"]
[EndTime "14:56:17 PDT"]
[Termination "simaopdias won by resignation"]

1. e4 {[%clk 0:02:52.9]} 1... c5 {[%clk 0:02:59.4]} 2. Nf3 {[%clk 0:02:53.2]}
2... g6 {[%clk 0:03:00.3]} 3. d4 {[%clk 0:02:52.5]} 3... cxd4 {[%clk 0:03:01.2]}
4. Qxd4 {[%clk 0:02:52.8]} 4... Nf6 {[%clk 0:03:01.1]} 5. Nc3 {[%clk 0:02:53.3]}
5... Nc6 {[%clk 0:03:01.2]} 6. Qa4 {[%clk 0:02:53.9]} 6... d6 {[%clk 0:02:56.8]}
7. e5 {[%clk 0:02:53.7]} 7... dxe5 {[%clk 0:02:50.9]} 8. Nxe5 {[%clk 0:02:54.6]}
8... Bd7 {[%clk 0:02:50.7]} 9. Bb5 {[%clk 0:02:54.8]} 9... Nxe5 {[%clk
0:02:49.8]} 10. Bxd7+ {[%clk 0:02:34.9]} 10... Qxd7 {[%clk 0:02:49]} 11. Qf4
{[%clk 0:02:35.4]} 11... Nc6 {[%clk 0:02:48.8]} 12. O-O {[%clk 0:02:33.7]} 12...
Bg7 {[%clk 0:02:49]} 13. Be3 {[%clk 0:02:33.7]} 13... O-O {[%clk 0:02:45.8]} 14.
Rad1 {[%clk 0:02:31.5]} 14... Qg4 {[%clk 0:02:44.9]} 15. Qc7 {[%clk 0:02:29.5]}
15... Qc8 {[%clk 0:02:40.8]} 16. Qf4 {[%clk 0:02:27.3]} 16... Rd8 {[%clk
0:02:40.4]} 17. h3 {[%clk 0:02:26.8]} 17... h5 {[%clk 0:02:34]} 18. Nb5 {[%clk
0:02:24.8]} 18... Nd5 {[%clk 0:02:24.1]} 19. Qc4 {[%clk 0:02:17.9]} 19... Nxe3
{[%clk 0:02:07.6]} 20. fxe3 {[%clk 0:02:18.8]} 20... e6 {[%clk 0:02:06.4]} 21.
Nd6 {[%clk 0:02:15.2]} 21... Qb8 {[%clk 0:01:53.5]} 22. Qf4 {[%clk 0:02:03.2]}
22... Rxd6 {[%clk 0:01:40.9]} 23. Qxd6 {[%clk 0:01:58.1]} 23... Qxd6 {[%clk
0:01:38.7]} 24. Rxd6 {[%clk 0:01:59]} 24... Rd8 {[%clk 0:01:29.7]} 25. Rxd8+
{[%clk 0:01:59]} 25... Nxd8 {[%clk 0:01:30.6]} 26. c3 {[%clk 0:01:59.7]} 26...
Kf8 {[%clk 0:01:29.8]} 27. Rd1 {[%clk 0:02:00.2]} 27... Ke7 {[%clk 0:01:30]} 28.
Kf2 {[%clk 0:02:00.9]} 28... Nc6 {[%clk 0:01:30.3]} 29. Ke2 {[%clk 0:01:57.6]}
29... Be5 {[%clk 0:01:30.5]} 30. g4 {[%clk 0:01:56.3]} 30... h4 {[%clk
0:01:29.8]} 31. Kd3 {[%clk 0:01:50.3]} 31... Bd6 {[%clk 0:01:29.7]} 32. Ke4
{[%clk 0:01:48.4]} 32... Ne5 {[%clk 0:01:28]} 33. b4 {[%clk 0:01:44.6]} 33... a6
{[%clk 0:01:27.5]} 34. a3 {[%clk 0:01:41.3]} 34... Kd7 {[%clk 0:01:25.5]} 35.
Kd4 {[%clk 0:01:41.1]} 35... Kc6 {[%clk 0:01:22.8]} 36. c4 {[%clk 0:01:39.2]}
36... Nf3+ {[%clk 0:01:18.5]} 37. Kd3 {[%clk 0:01:31.8]} 37... Ng5 {[%clk
0:01:18]} 38. Rf1 {[%clk 0:01:31.8]} 38... Kd7 {[%clk 0:01:15.6]} 39. Rh1 {[%clk
0:01:29.1]} 39... Ke7 {[%clk 0:01:15]} 40. c5 {[%clk 0:01:28.6]} 40... Bg3
{[%clk 0:01:13.9]} 41. a4 {[%clk 0:01:24.9]} 41... Kd7 {[%clk 0:01:09.5]} 42. b5
{[%clk 0:01:23.2]} 42... a5 {[%clk 0:01:08.7]} 43. Kc4 {[%clk 0:01:23]} 43...
Ne4 {[%clk 0:01:05.6]} 44. Rd1+ {[%clk 0:01:17.1]} 44... Kc7 {[%clk 0:01:05.4]}
45. Rf1 {[%clk 0:01:17]} 45... Nd2+ {[%clk 0:01:02.2]} 46. Kd3 {[%clk
0:01:17.1]} 46... Nxf1 {[%clk 0:01:02.2]} 0-1

[Event "Late-Titled-Tuesday-Blitz-June-18-2024"]
[Site "Chess.com"]
[Date "2024.06.18"]
[Round "5"]
[White "Skillcam"]
[Black "Eloist"]
[Result "1-0"]
[WhiteElo "2575"]
[BlackElo "2448"]
[TimeControl "180+1"]
[EndTime "14:56:24 PDT"]
[Termination "Skillcam won on time"]

1. Nf3 {[%clk 0:03:00.9]} 1... Nf6 {[%clk 0:02:59.3]} 2. c4 {[%clk 0:02:58.4]}
2... e6 {[%clk 0:02:59.3]} 3. e3 {[%clk 0:02:57.5]} 3... b6 {[%clk 0:02:59]} 4.
b3 {[%clk 0:02:56.1]} 4... Bb7 {[%clk 0:02:58.8]} 5. Bb2 {[%clk 0:02:56.6]} 5...
g6 {[%clk 0:02:57.8]} 6. Be2 {[%clk 0:02:54.6]} 6... Bg7 {[%clk 0:02:57.9]} 7.
O-O {[%clk 0:02:55]} 7... O-O {[%clk 0:02:58.1]} 8. Nc3 {[%clk 0:02:55.1]} 8...
c5 {[%clk 0:02:55.2]} 9. d4 {[%clk 0:02:55.4]} 9... cxd4 {[%clk 0:02:51.7]} 10.
Nxd4 {[%clk 0:02:56.3]} 10... Nc6 {[%clk 0:02:47]} 11. Qd2 {[%clk 0:02:53]}
11... Nxd4 {[%clk 0:02:44.4]} 12. exd4 {[%clk 0:02:53.9]} 12... d5 {[%clk
0:02:41.7]} 13. Bf3 {[%clk 0:02:54.3]} 13... Ne4 {[%clk 0:02:32.8]} 14. Nxe4
{[%clk 0:02:53.9]} 14... dxe4 {[%clk 0:02:32.6]} 15. Be2 {[%clk 0:02:54.6]}
15... Qh4 {[%clk 0:02:23.5]} 16. g3 {[%clk 0:02:54.2]} 16... Qh3 {[%clk
0:02:19.5]} 17. Qc3 {[%clk 0:02:46.5]} 17... Rad8 {[%clk 0:02:09.4]} 18. Rad1
{[%clk 0:02:46.1]} 18... Rd7 {[%clk 0:01:45.3]} 19. Rfe1 {[%clk 0:02:44.8]}
19... Rfd8 {[%clk 0:01:41.1]} 20. Bf1 {[%clk 0:02:44.1]} 20... Qh5 {[%clk
0:01:37.1]} 21. Qe3 {[%clk 0:02:40.1]} 21... Bh6 {[%clk 0:01:33.3]} 22. Qe2
{[%clk 0:02:39.1]} 22... Qxe2 {[%clk 0:01:21.9]} 23. Rxe2 {[%clk 0:02:40]} 23...
Bg7 {[%clk 0:01:17.7]} 24. Red2 {[%clk 0:02:39.2]} 24... Bh6 {[%clk 0:01:13.8]}
25. Re2 {[%clk 0:02:34.4]} 25... Bg7 {[%clk 0:01:12.2]} 26. Red2 {[%clk
0:02:32.4]} 26... Bh6 {[%clk 0:01:11.8]} 27. Rc2 {[%clk 0:02:33.1]} 27... e3
{[%clk 0:01:02.1]} 28. f4 {[%clk 0:02:26.4]} 28... Bg7 {[%clk 0:00:54.2]} 29.
Re1 {[%clk 0:02:26.1]} 29... Bxd4 {[%clk 0:00:49.4]} 30. Bxd4 {[%clk 0:02:25.9]}
30... Rxd4 {[%clk 0:00:49.8]} 31. Rxe3 {[%clk 0:02:24.9]} 31... Rd2 {[%clk
0:00:39.6]} 32. Rxd2 {[%clk 0:02:22]} 32... Rxd2 {[%clk 0:00:38.8]} 33. Re2
{[%clk 0:02:22.6]} 33... Rd1 {[%clk 0:00:27.3]} 34. Kf2 {[%clk 0:02:21.7]} 34...
Kf8 {[%clk 0:00:26]} 35. Bh3 {[%clk 0:02:18.7]} 35... h5 {[%clk 0:00:24.5]} 36.
Ke3 {[%clk 0:02:15.6]} 36... a5 {[%clk 0:00:19.3]} 37. Rd2 {[%clk 0:02:15.2]}
37... Rxd2 {[%clk 0:00:16.3]} 38. Kxd2 {[%clk 0:02:16.1]} 38... Ke7 {[%clk
0:00:16.5]} 39. Kc3 {[%clk 0:02:16]} 39... Kd6 {[%clk 0:00:16.2]} 40. Kd4 {[%clk
0:02:15.8]} 40... f6 {[%clk 0:00:15.8]} 41. a3 {[%clk 0:02:12.8]} 41... e5+
{[%clk 0:00:16]} 42. fxe5+ {[%clk 0:02:13.7]} 42... fxe5+ {[%clk 0:00:16.6]} 43.
Ke3 {[%clk 0:02:14.2]} 43... Kc5 {[%clk 0:00:13.9]} 44. Be6 {[%clk 0:02:13.3]}
44... g5 {[%clk 0:00:12.7]} 45. h4 {[%clk 0:02:12.4]} 45... gxh4 {[%clk
0:00:11.9]} 46. gxh4 {[%clk 0:02:13.3]} 46... b5 {[%clk 0:00:06.9]} 47. cxb5
{[%clk 0:02:11.6]} 47... Kxb5 {[%clk 0:00:07.1]} 48. Bf7 {[%clk 0:02:11.8]}
48... Bc6 {[%clk 0:00:06.6]} 49. Bxh5 {[%clk 0:02:10.8]} 49... Bd5 {[%clk
0:00:05.6]} 50. Bd1 {[%clk 0:02:09.6]} 1-0

[Event "Late-Titled-Tuesday-Blitz-June-18-2024"]
[Site "Chess.com"]
[Date "2024.06.18"]
[Round "5"]
[White "manitodeplomo"]
[Black "ALRS-SPS"]
[Result "1-0"]
[WhiteElo "2675"]
[BlackElo "2426"]
[TimeControl "180+1"]
[EndTime "14:56:29 PDT"]
[Termination "manitodeplomo won by resignation"]

1. d4 {[%clk 0:03:00.9]} 1... Nf6 {[%clk 0:02:58.6]} 2. c4 {[%clk 0:03:00.3]}
2... e6 {[%clk 0:02:58.8]} 3. Nf3 {[%clk 0:03:00.2]} 3... d5 {[%clk 0:02:58.8]}
4. Nc3 {[%clk 0:03:00.2]} 4... Be7 {[%clk 0:02:58.7]} 5. Bg5 {[%clk 0:02:59.9]}
5... O-O {[%clk 0:02:58.5]} 6. Qc2 {[%clk 0:03:00.1]} 6... Nbd7 {[%clk
0:02:57.4]} 7. e3 {[%clk 0:02:58.4]} 7... b6 {[%clk 0:02:55.3]} 8. cxd5 {[%clk
0:02:53.1]} 8... exd5 {[%clk 0:02:47.1]} 9. Bd3 {[%clk 0:02:50.4]} 9... Bb7
{[%clk 0:02:45.8]} 10. O-O {[%clk 0:02:47.4]} 10... h6 {[%clk 0:02:46]} 11. Bh4
{[%clk 0:02:46.7]} 11... c5 {[%clk 0:02:43.3]} 12. Rad1 {[%clk 0:02:44.4]} 12...
c4 {[%clk 0:02:42.8]} 13. Bf5 {[%clk 0:02:43.6]} 13... a6 {[%clk 0:02:39.5]} 14.
Ne5 {[%clk 0:02:01.5]} 14... b5 {[%clk 0:02:19.2]} 15. a3 {[%clk 0:02:01]} 15...
Re8 {[%clk 0:01:57.8]} 16. Qe2 {[%clk 0:01:51.7]} 16... Qc7 {[%clk 0:01:47.6]}
17. f4 {[%clk 0:01:32]} 17... Bc6 {[%clk 0:01:34.8]} 18. g4 {[%clk 0:01:27.8]}
18... a5 {[%clk 0:01:32]} 19. g5 {[%clk 0:01:27.2]} 19... hxg5 {[%clk
0:01:30.3]} 20. fxg5 {[%clk 0:01:25.8]} 20... Nxe5 {[%clk 0:01:07.6]} 21. gxf6
{[%clk 0:01:15.6]} 21... gxf6 {[%clk 0:00:29.8]} 22. Qh5 {[%clk 0:01:04.1]}
22... Ng6 {[%clk 0:00:25.6]} 23. Bxg6 {[%clk 0:01:03.4]} 23... fxg6 {[%clk
0:00:26]} 24. Qxg6+ {[%clk 0:01:03.4]} 24... Kh8 {[%clk 0:00:26.3]} 25. Qh6+
{[%clk 0:00:53.4]} 25... Kg8 {[%clk 0:00:26.4]} 26. Rd2 {[%clk 0:00:50.4]} 26...
Bf8 {[%clk 0:00:26.3]} 27. Rg2+ {[%clk 0:00:48.4]} 1-0

[Event "Late-Titled-Tuesday-Blitz-June-18-2024"]
[Site "Chess.com"]
[Date "2024.06.18"]
[Round "5"]
[White "yoursillykitten"]
[Black "K-Nygren"]
[Result "0-1"]
[WhiteElo "2812"]
[BlackElo "2543"]
[TimeControl "180+1"]
[EndTime "14:56:30 PDT"]
[Termination "K-Nygren won on time"]

1. d4 {[%clk 0:02:26]} 1... d5 {[%clk 0:02:59.3]} 2. c4 {[%clk 0:02:21.6]} 2...
c6 {[%clk 0:02:59]} 3. Nf3 {[%clk 0:02:18]} 3... Nf6 {[%clk 0:02:58.4]} 4. Nc3
{[%clk 0:02:18.5]} 4... dxc4 {[%clk 0:02:55.8]} 5. a4 {[%clk 0:02:18]} 5... Bf5
{[%clk 0:02:55.3]} 6. Ne5 {[%clk 0:02:17.9]} 6... Na6 {[%clk 0:02:54.5]} 7. e3
{[%clk 0:02:16.1]} 7... Nb4 {[%clk 0:02:50.3]} 8. Bxc4 {[%clk 0:02:13.5]} 8...
e6 {[%clk 0:02:40]} 9. O-O {[%clk 0:02:11.4]} 9... Bd6 {[%clk 0:02:38.3]} 10.
Qf3 {[%clk 0:02:03.3]} 10... Bg6 {[%clk 0:02:35.4]} 11. Rd1 {[%clk 0:01:56.1]}
11... O-O {[%clk 0:02:33.9]} 12. Nxg6 {[%clk 0:01:55.8]} 12... hxg6 {[%clk
0:02:33.3]} 13. e4 {[%clk 0:01:56]} 13... Be7 {[%clk 0:02:20.8]} 14. Bg5 {[%clk
0:01:44.9]} 14... Nh5 {[%clk 0:02:10.9]} 15. Be3 {[%clk 0:01:30.6]} 15... Nc2
{[%clk 0:02:05.5]} 16. Rac1 {[%clk 0:01:29.2]} 16... Nxe3 {[%clk 0:02:04.9]} 17.
fxe3 {[%clk 0:01:29.2]} 17... Qa5 {[%clk 0:02:00.3]} 18. e5 {[%clk 0:01:15.8]}
18... Qb4 {[%clk 0:01:35.4]} 19. Ne4 {[%clk 0:00:40.4]} 19... b5 {[%clk
0:01:31.3]} 20. axb5 {[%clk 0:00:28.2]} 20... cxb5 {[%clk 0:01:30.8]} 21. Ba2
{[%clk 0:00:26.4]} 21... Qxb2 {[%clk 0:01:25.7]} 22. Ra1 {[%clk 0:00:25.6]}
22... f5 {[%clk 0:01:13.5]} 23. exf6 {[%clk 0:00:17.2]} 23... Bxf6 {[%clk
0:01:09.1]} 0-1

[Event "Late-Titled-Tuesday-Blitz-June-18-2024"]
[Site "Chess.com"]
[Date "2024.06.18"]
[Round "5"]
[White "VirtualCoach"]
[Black "Bala-Afiada"]
[Result "1-0"]
[WhiteElo "2341"]
[BlackElo "2055"]
[TimeControl "180+1"]
[EndTime "14:56:32 PDT"]
[Termination "VirtualCoach won on time"]

1. e4 {[%clk 0:02:22.5]} 1... c5 {[%clk 0:02:59]} 2. Nf3 {[%clk 0:02:17.3]} 2...
Nc6 {[%clk 0:02:59.1]} 3. d4 {[%clk 0:02:16.5]} 3... cxd4 {[%clk 0:03:00]} 4.
Nxd4 {[%clk 0:02:17.4]} 4... Nf6 {[%clk 0:03:00.7]} 5. Nc3 {[%clk 0:02:17.2]}
5... d6 {[%clk 0:03:01.1]} 6. Bg5 {[%clk 0:02:15.7]} 6... e6 {[%clk 0:03:01.4]}
7. Qd2 {[%clk 0:02:16.1]} 7... Be7 {[%clk 0:03:01.4]} 8. O-O-O {[%clk
0:02:14.9]} 8... Nxd4 {[%clk 0:03:01.7]} 9. Qxd4 {[%clk 0:02:14.8]} 9... O-O
{[%clk 0:03:02.4]} 10. f3 {[%clk 0:02:14.8]} 10... Qa5 {[%clk 0:02:56.5]} 11.
Be3 {[%clk 0:02:12.5]} 11... Bd7 {[%clk 0:02:51.2]} 12. g4 {[%clk 0:02:11.6]}
12... b5 {[%clk 0:02:35.9]} 13. a3 {[%clk 0:02:08.6]} 13... e5 {[%clk
0:02:15.1]} 14. Qd2 {[%clk 0:02:04.9]} 14... b4 {[%clk 0:02:09.3]} 15. Nd5
{[%clk 0:02:02.2]} 15... Nxd5 {[%clk 0:02:07.5]} 16. exd5 {[%clk 0:02:03.1]}
16... Rab8 {[%clk 0:01:50.3]} 17. Qe1 {[%clk 0:02:00.8]} 17... Qa4 {[%clk
0:01:34.9]} 18. Rd3 {[%clk 0:01:43]} 18... bxa3 {[%clk 0:01:17.5]} 19. Rxa3
{[%clk 0:01:41.8]} 19... Qb4 {[%clk 0:00:59.1]} 20. Qxb4 {[%clk 0:01:40.3]}
20... Rxb4 {[%clk 0:01:00]} 21. Rxa7 {[%clk 0:01:39.6]} 21... Rd8 {[%clk
0:00:42.4]} 22. Bd2 {[%clk 0:01:39.1]} 22... Rd4 {[%clk 0:00:10]} 23. Ba5 {[%clk
0:01:36.8]} 23... Bg5+ {[%clk 0:00:09]} 24. Kb1 {[%clk 0:01:36.6]} 24... Rd1+
{[%clk 0:00:02.1]} 25. Ka2 {[%clk 0:01:35]} 25... Rb8 {[%clk 0:00:02.2]} 26.
Rxd7 {[%clk 0:01:33.1]} 26... h6 {[%clk 0:00:02.7]} 27. h4 {[%clk 0:01:29.1]}
27... Bc1 {[%clk 0:00:02.6]} 28. Rd8+ {[%clk 0:01:27.6]} 28... Rxd8 {[%clk
0:00:02.3]} 29. Bxd8 {[%clk 0:01:28.5]} 29... Rxd5 {[%clk 0:00:01.7]} 30. Bd3
{[%clk 0:01:26.9]} 1-0

[Event "Late-Titled-Tuesday-Blitz-June-18-2024"]
[Site "Chess.com"]
[Date "2024.06.18"]
[Round "5"]
[White "aeiiuu"]
[Black "evgchess5"]
[Result "0-1"]
[WhiteElo "2644"]
[BlackElo "2915"]
[TimeControl "180+1"]
[EndTime "14:56:33 PDT"]
[Termination "evgchess5 won by resignation"]

1. e4 {[%clk 0:02:34.9]} 1... c5 {[%clk 0:02:58.7]} 2. Nf3 {[%clk 0:02:34.1]}
2... e6 {[%clk 0:02:58.8]} 3. d4 {[%clk 0:02:33.9]} 3... cxd4 {[%clk 0:02:58.9]}
4. Nxd4 {[%clk 0:02:34.8]} 4... Nc6 {[%clk 0:02:58.6]} 5. Nc3 {[%clk 0:02:26.8]}
5... a6 {[%clk 0:02:58.4]} 6. g3 {[%clk 0:02:25.7]} 6... Nxd4 {[%clk 0:02:57.5]}
7. Qxd4 {[%clk 0:02:20.4]} 7... b5 {[%clk 0:02:57.9]} 8. Bg2 {[%clk 0:02:20.8]}
8... Bb7 {[%clk 0:02:58]} 9. O-O {[%clk 0:02:21.3]} 9... Ne7 {[%clk 0:02:58]}
10. a4 {[%clk 0:02:17.7]} 10... Nc6 {[%clk 0:02:57.1]} 11. Qd3 {[%clk
0:02:12.5]} 11... b4 {[%clk 0:02:56.4]} 12. Ne2 {[%clk 0:02:11.4]} 12... Bc5
{[%clk 0:02:50.7]} 13. b3 {[%clk 0:02:04.4]} 13... O-O {[%clk 0:02:44.1]} 14.
Bb2 {[%clk 0:02:02.9]} 14... d6 {[%clk 0:02:43.4]} 15. Rad1 {[%clk 0:01:55.5]}
15... e5 {[%clk 0:02:22]} 16. Kh1 {[%clk 0:01:42.7]} 16... a5 {[%clk 0:02:21.6]}
17. f4 {[%clk 0:01:40.5]} 17... Ba6 {[%clk 0:02:14.1]} 18. Qd2 {[%clk
0:01:37.7]} 18... Qb6 {[%clk 0:02:14.8]} 19. fxe5 {[%clk 0:01:36.6]} 19... dxe5
{[%clk 0:02:11.7]} 20. Rde1 {[%clk 0:01:26.6]} 20... Be3 {[%clk 0:01:37.6]} 21.
Qd7 {[%clk 0:01:13.4]} 21... Rad8 {[%clk 0:01:32.2]} 22. Qg4 {[%clk 0:01:12.7]}
22... Rd2 {[%clk 0:01:21.7]} 23. Bc1 {[%clk 0:01:01.1]} 23... Rxc2 {[%clk
0:01:15.6]} 24. Bxe3 {[%clk 0:01:00.4]} 24... Qxe3 {[%clk 0:01:15.4]} 25. Nf4
{[%clk 0:00:59.9]} 25... exf4 {[%clk 0:00:58.5]} 26. Rxe3 {[%clk 0:00:56.4]}
26... Bxf1 {[%clk 0:00:58]} 27. gxf4 {[%clk 0:00:53.1]} 27... Bxg2+ {[%clk
0:00:50]} 28. Kg1 {[%clk 0:00:51.8]} 28... Bxe4 {[%clk 0:00:45.7]} 29. Rxe4
{[%clk 0:00:45]} 29... Rc1+ {[%clk 0:00:45.8]} 30. Kf2 {[%clk 0:00:36.5]} 30...
f5 {[%clk 0:00:45.8]} 0-1

[Event "Late-Titled-Tuesday-Blitz-June-18-2024"]
[Site "Chess.com"]
[Date "2024.06.18"]
[Round "5"]
[White "el_sporco"]
[Black "LeonardoL2005"]
[Result "1-0"]
[WhiteElo "2571"]
[BlackElo "2259"]
[TimeControl "180+1"]
[EndTime "14:56:33 PDT"]
[Termination "el_sporco won by resignation"]

1. e4 {[%clk 0:03:00.9]} 1... c5 {[%clk 0:03:00]} 2. Nf3 {[%clk 0:02:58.1]} 2...
g6 {[%clk 0:03:00.5]} 3. c3 {[%clk 0:02:49.1]} 3... Bg7 {[%clk 0:03:00.8]} 4.
Bd3 {[%clk 0:02:49.6]} 4... Nc6 {[%clk 0:02:59.8]} 5. O-O {[%clk 0:02:50]} 5...
e6 {[%clk 0:03:00.1]} 6. Bc2 {[%clk 0:02:50.2]} 6... Nge7 {[%clk 0:03:00.6]} 7.
d4 {[%clk 0:02:49.9]} 7... cxd4 {[%clk 0:03:01.5]} 8. cxd4 {[%clk 0:02:50]} 8...
d5 {[%clk 0:03:01.7]} 9. Nc3 {[%clk 0:02:22.7]} 9... O-O {[%clk 0:03:01.3]} 10.
Bg5 {[%clk 0:02:13.1]} 10... h6 {[%clk 0:03:00.2]} 11. Be3 {[%clk 0:02:11.7]}
11... dxe4 {[%clk 0:02:59.7]} 12. Nxe4 {[%clk 0:02:08.7]} 12... Nf5 {[%clk
0:02:59.6]} 13. Qd2 {[%clk 0:01:51.1]} 13... Nxe3 {[%clk 0:02:56.1]} 14. fxe3
{[%clk 0:01:50.2]} 14... b6 {[%clk 0:02:56.7]} 15. Rac1 {[%clk 0:01:46.3]} 15...
Ba6 {[%clk 0:02:56.9]} 16. Bd3 {[%clk 0:01:45.6]} 16... Bxd3 {[%clk 0:02:56.4]}
17. Qxd3 {[%clk 0:01:46.5]} 17... Nb4 {[%clk 0:02:56.5]} 18. Qb3 {[%clk
0:01:44.7]} 18... Nd5 {[%clk 0:02:55.6]} 19. Rfe1 {[%clk 0:01:41.6]} 19... Rc8
{[%clk 0:02:55.2]} 20. Nc3 {[%clk 0:01:41.5]} 20... Nxc3 {[%clk 0:02:53.8]} 21.
Rxc3 {[%clk 0:01:42.1]} 21... Qd7 {[%clk 0:02:53.6]} 22. Rec1 {[%clk 0:01:40.9]}
22... Rxc3 {[%clk 0:02:52.3]} 23. Qxc3 {[%clk 0:01:41.1]} 23... Rd8 {[%clk
0:02:46]} 24. Qc7 {[%clk 0:01:38.9]} 24... Bf8 {[%clk 0:02:43.4]} 25. Kf2 {[%clk
0:01:08.3]} 25... Bd6 {[%clk 0:02:42.8]} 26. Qxd7 {[%clk 0:01:07.4]} 26... Rxd7
{[%clk 0:02:43.7]} 27. e4 {[%clk 0:01:06.6]} 27... Rc7 {[%clk 0:02:44]} 28. Rc3
{[%clk 0:01:02.4]} 28... Kf8 {[%clk 0:02:34.7]} 29. e5 {[%clk 0:01:01.5]} 29...
Rxc3 {[%clk 0:02:33.6]} 30. bxc3 {[%clk 0:01:02.2]} 30... Ba3 {[%clk 0:02:33.9]}
31. Ke3 {[%clk 0:01:02.2]} 31... Ke7 {[%clk 0:02:34.4]} 32. Kd3 {[%clk
0:01:00.7]} 32... Kd7 {[%clk 0:02:32]} 33. Nd2 {[%clk 0:01:00.8]} 33... Kc6
{[%clk 0:02:31.1]} 34. Ne4 {[%clk 0:00:57.9]} 34... b5 {[%clk 0:02:28.6]} 35. c4
{[%clk 0:00:54.3]} 35... a6 {[%clk 0:02:27.9]} 36. Nc3 {[%clk 0:00:53.5]} 36...
Bb4 {[%clk 0:02:22.9]} 37. Ne4 {[%clk 0:00:41.1]} 37... Be7 {[%clk 0:02:07.9]}
38. g3 {[%clk 0:00:37.6]} 38... Bb4 {[%clk 0:02:05.3]} 39. c5 {[%clk 0:00:37.4]}
39... a5 {[%clk 0:01:58.5]} 40. Nd6 {[%clk 0:00:37.4]} 40... Be1 {[%clk
0:01:51.2]} 41. Nxf7 {[%clk 0:00:36.7]} 41... Bf2 {[%clk 0:01:51.8]} 42. Nxh6
{[%clk 0:00:36.5]} 42... Bg1 {[%clk 0:01:52.7]} 43. Ng4 {[%clk 0:00:36.8]} 43...
Kd5 {[%clk 0:01:52]} 44. h3 {[%clk 0:00:33.4]} 44... b4 {[%clk 0:01:52.6]} 45.
Ne3+ {[%clk 0:00:31.6]} 45... Bxe3 {[%clk 0:01:40.2]} 46. Kxe3 {[%clk
0:00:32.5]} 46... a4 {[%clk 0:01:31.2]} 47. Kd3 {[%clk 0:00:32.5]} 47... a3
{[%clk 0:01:31.6]} 48. Kc2 {[%clk 0:00:29.6]} 48... Kxd4 {[%clk 0:01:31.9]} 49.
c6 {[%clk 0:00:28.4]} 49... Kxe5 {[%clk 0:01:32.3]} 50. c7 {[%clk 0:00:28.6]}
50... Ke4 {[%clk 0:01:33.2]} 51. c8=Q {[%clk 0:00:29]} 51... Kf3 {[%clk
0:01:34.1]} 52. Qxe6 {[%clk 0:00:29.1]} 1-0